[Event "IIFL Wealth  4th Mumbai Junior U-13"]
[Site "Mumbai"]
[Date "2018.12.31"]
[Round "2"]
[White "Tawade Arnav"]
[Black "Ambre Ved"]
[Result "1/2-1/2"]
[ECO "E32"]
[WhiteElo "1285"]
[BlackElo "1063"]
[Annotator "NA"]
[PlyCount "109"]
[EventDate "2018.12.30"]
[EventType "swiss"]
[EventCountry "IND"]
[SourceTitle "playchess.com"]
[Source "ChessBase"]
[SourceQuality "1"]
[TimeControl "40/5400+30:1800+30"]

1. d4 {[%emt 0:00:00]} Nf6 {[%emt 0:00:17]} 2. c4 {[%emt 0:00:00]} e6 {[%emt 0:00:19]} 3. Nc3 {[%emt 0:00:00]} Bb4 {[%emt 0:00:45]} 4. Qc2 {[%emt 0:00:00]} c6 {[%emt 0:00:44]} 5. a3 {[%emt 0:12:41]} Bxc3+ {[%emt 0:00:17]} 6. Qxc3 {[%emt 0:00:48]} d5 {[%emt 0:00:09]} 7. Bg5 {[%emt 0:10:45]} O-O {[%emt 0:02:00]} 8. e3 {[%emt 0:02:42]} Ne4 {[%emt 0:03:04]} 9. Bxd8 {[%emt 0:01:03]} Nxc3 {[%emt 0:00:03]} 10. Bc7 {[%emt 0:03:28]} Na6 {[%emt 0:01:56]} 11. Bf4 {[%emt 0:04:17]} Ne4 {[%emt 0:03:23]} 12. Bd3 {[%emt 0:02:36]} Nf6 {[%emt 0:00:57]} 13. h3 {[%emt 0:01:59]} b6 {[%emt 0:03:12]} 14. b4 {[%emt 0:07:36]} c5 {[%emt 0:02:49]} 15. b5 {[%emt 0:06:17]} Nb8 {[%emt 0:00:07]} 16. dxc5 {[%emt 0:00:18]} bxc5 {[%emt 0:02:00]} 17. Bd6 {[%emt 0:01:14]} Rd8 {[%emt 0:00:03]} 18. Bxc5 {[%emt 0:01:11]} dxc4 {[%emt 0:01:07]} 19. Bxc4 {[%emt 0:03:17]} Bb7 {[%emt 0:01:42]} 20. Be7 {[%emt 0:01:49]} Rc8 {[%emt 0:01:56]} 21. Bf1 {[%emt 0:02:16]} Nbd7 {[%emt 0:01:06]} 22. Nf3 {[%emt 0:01:10]} Re8 {[%emt 0:00:21]} 23. Bb4 {[%emt 0:02:58]} Nd5 {[%emt 0:01:48]} 24. Bd2 {[%emt 0:03:32]} Nc5 {[%emt 0:00:29]} 25. Bc4 {[%emt 0:01:59]} Rec8 {[%emt 0:01:14]} 26. O-O {[%emt 0:05:42]} a6 {[%emt 0:01:20]} 27. bxa6 {[%emt 0:05:15]} Bxa6 {[%emt 0:00:16]} 28. Bxa6 {[%emt 0:00:42]} Rxa6 {[%emt 0:00:02]} 29. Rfc1 {[%emt 0:03:29]} Raa8 {[%emt 0:00:26]} 30. Rcb1 {[%emt 0:03:01]} h6 {[%emt 0:03:39]} 31. Kf1 {[%emt 0:04:18]} Ne4 {[%emt 0:02:23]} 32. Be1 {[%emt 0:02:00]} Ra4 {[%emt 0:02:57]} 33. Nd4 {[%emt 0:03:34]} Rca8 {[%emt 0:06:08]} 34. Nc2 {[%emt 0:01:57]} R8a6 {[%emt 0:01:24]} 35. Nb4 {[%emt 0:01:33]} Ndc3 {[%emt 0:05:17]} 36. Bxc3 {[%emt 0:00:49]} Nxc3 {[%emt 0:00:03]} 37. Rb3 {[%emt 0:00:59]} Ne4 {[%emt 0:01:14]} 38. Ke2 {[%emt 0:01:01]} Ra8 {[%emt 0:00:35]} 39. f3 {[%emt 0:00:21]} Nc5 40. Rc3 {[%emt 0:00:00]} Nd7 {[%emt 0:00:00]} 41. Nd3 {[%emt 0:02:31]} Kf8 {[%emt 0:02:12]} 42. Nb2 {[%emt 0:04:10]} R4a5 {[%emt 0:00:46]} 43. a4 {[%emt 0:02:32]} Nb6 {[%emt 0:00:54]} 44. Kf2 {[%emt 0:11:53]} Ke8 {[%emt 0:02:21]} 45. Rc7 {[%emt 0:07:06]} Nxa4 {[%emt 0:02:07]} 46. Nxa4 {[%emt 0:00:10]} Rxa4 {[%emt 0:00:08]} 47. Rb1 {[%emt 0:00:52]} Ra2+ {[%emt 0:00:34]} 48. Kg3 {[%emt 0:00:18]} R2a7 {[%emt 0:00:01]} 49. Rb8+ {[%emt 0:00:48]} Rxb8 {[%emt 0:00:02]} 50. Rxa7 {[%emt 0:00:10]} Rb5 {[%emt 0:00:44]} 51. f4 {[%emt 0:00:56]} Kf8 {[%emt 0:00:19]} 52. Kf3 {[%emt 0:00:44]} g5 {[%emt 0:00:44]} 53. Kg4 {[%emt 0:01:50]} Kg7 {[%emt 0:00:43]} 54. g3 {[%emt 0:00:32]} Rb3 {[%emt 0:02:45]} 55. Kf3 {[%emt 0:01:45]} 1/2-1/2

[Event "IIFL Wealth  4th Mumbai Junior U-13"]
[Site "Mumbai"]
[Date "2018.12.31"]
[Round "2"]
[White "Sawalakhe Jay"]
[Black "Laddha, Shubh Jayesh"]
[Result "1/2-1/2"]
[ECO "B78"]
[WhiteElo "1273"]
[BlackElo "1567"]
[Annotator "NA RC"]
[PlyCount "115"]
[EventDate "2018.12.30"]
[EventType "swiss"]
[EventCountry "IND"]
[SourceTitle "playchess.com"]
[Source "ChessBase"]
[SourceQuality "1"]
[TimeControl "40/5400+30:1800+30"]

1. e4 {[%emt 0:00:00]} c5 {[%emt 0:00:00]} 2. Nf3 {[%emt 0:00:00]} d6 {[%emt 0:00:00]} 3. d4 {[%emt 0:00:00]} cxd4 {[%emt 0:00:00]} 4. Nxd4 {[%emt 0:00:00]} Nf6 {[%emt 0:00:00]} 5. Nc3 {[%emt 0:00:00]} g6 {[%emt 0:00:00]} 6. Be3 {[%emt 0:00:00]} Bg7 {[%emt 0:00:00]} 7. f3 {[%emt 0:00:02]} O-O {[%emt 0:00:04]} 8. Bc4 {[%emt 0:00:04]} Nc6 {[%emt 0:00:05]} 9. Qd2 {[%emt 0:00:05]} Bd7 {[%emt 0:00:06]} 10. O-O-O {[%emt 0:00:34]} Rc8 {[%emt 0:00:06]} 11. Bb3 {[%emt 0:00:18]} Nxd4 {[%emt 0:00:05]} 12. Bxd4 {[%emt 0:00:09]} b5 {[%emt 0:00:04]} 13. e5 {[%emt 0:00:39]} dxe5 {[%emt 0:02:41]} 14. Bxe5 {[%emt 0:00:08]} Bc6 {[%emt 0:00:47]} 15. Qxd8 {[%emt 0:00:32]} Rfxd8 {[%emt 0:00:09]} 16. Rxd8+ {[%emt 0:00:07]} Rxd8 {[%emt 0:00:05]} 17. Rd1 {[%emt 0:00:06]} Bh6+ {[%emt 0:08:39]} 18. Kb1 {[%emt 0:00:40]} Rxd1+ {[%emt 0:04:45]} 19. Nxd1 {[%emt 0:00:05]} Nd7 {[%emt 0:14:57]} 20. Bd4 {[%emt 0:02:06]} a5 {[%emt 0:09:57]} 21. Nc3 {[%emt 0:10:08]} e5 22. Bf2 Nf6 23. a4 bxa4 24. Bxa4 Bb7 25. Bb6 Bf4 26. h3 e4 27. fxe4 Nxe4 28. Nxe4 Bxe4 29. g4 g5 30. Bd8 Bg2 31. h4 gxh4 32. Bxh4 h6 33. Bd8 Bh3 34. Bxa5 Bxg4 35. b4 h5 36. Bc6 h4 37. b5 Bb8 38. c4 Be2 39. c5 h3 40. b6 Bf1 41. Be1 f5 42. Bd5+ Kh7 43. c6 Bd3+ 44. Kc1 Be4 45. Bxe4 fxe4 46. c7 Bxc7 47. bxc7 h2 48. c8=Q h1=Q 49. Qd7+ Kg6 50. Qe8+ Kg7 51. Qe7+ Kg6 52. Qd6+ Kg7 53. Qg3+ Kf7 54. Qf2+ Qf3 55. Qxf3+ exf3 56. Bf2 Ke6 57. Kd2 Kf7 {[%emt 1:28:38]} 58. Bc5 {[%emt 0:26:54]} 1/2-1/2

[Event "IIFL Wealth  4th Mumbai Junior U-13"]
[Site "Mumbai"]
[Date "2018.12.31"]
[Round "2"]
[White "Keshav Padmanabhan"]
[Black "Sarvade Mihiir"]
[Result "1/2-1/2"]
[ECO "B26"]
[WhiteElo "1272"]
[BlackElo "1563"]
[Annotator "NA RC"]
[PlyCount "58"]
[EventDate "2018.12.30"]
[EventType "swiss"]
[EventCountry "IND"]
[SourceTitle "playchess.com"]
[Source "ChessBase"]
[SourceQuality "1"]
[TimeControl "40/5400+30:1800+30"]

1. e4 {[%emt 0:00:00]} c5 {[%emt 0:00:20]} 2. Nc3 {[%emt 0:00:00]} Nc6 {[%emt 0:00:05]} 3. g3 {[%emt 0:00:00]} g6 {[%emt 0:03:01]} 4. Bg2 {[%emt 0:00:12]} Bg7 {[%emt 0:00:18]} 5. d3 {[%emt 0:00:07]} d6 {[%emt 0:01:55]} 6. Be3 {[%emt 0:00:11]} e6 {[%emt 0:02:05]} 7. f4 {[%emt 0:01:26]} Nge7 {[%emt 0:05:51]} 8. Nf3 {[%emt 0:00:17]} Nd4 {[%emt 0:04:13]} 9. Rb1 {[%emt 0:03:25]} b5 {[%emt 0:12:28]} 10. O-O {[%emt 0:03:02]} Rb8 {[%emt 0:02:03]} 11. Ne2 {[%emt 0:00:42]} Nec6 {[%emt 0:08:07]} 12. c3 {[%emt 0:00:32]} Nxe2+ {[%emt 0:08:32]} 13. Qxe2 {[%emt 0:00:29]} Qa5 {[%emt 0:09:45]} 14. Qd2 {[%emt 0:09:49]} b4 {[%emt 0:07:07]} 15. d4 {[%emt 0:10:11]} Ba6 {[%emt 0:08:16]} 16. Rfd1 {[%emt 0:02:18]} bxc3 {[%emt 0:00:36]} 17. bxc3 {[%emt 0:01:04]} Rxb1 {[%emt 0:00:22]} 18. Rxb1 {[%emt 0:00:35]} cxd4 {[%emt 0:00:20]} 19. Nxd4 {[%emt 0:02:54]} Nxd4 {[%emt 0:02:01]} 20. Bxd4 {[%emt 0:00:19]} O-O {[%emt 0:08:28]} 21. Bxg7 {[%emt 0:02:09]} Kxg7 {[%emt 0:00:17]} 22. Qd4+ {[%emt 0:01:32]} Kg8 {[%emt 0:02:34]} 23. Qxd6 {[%emt 0:02:13]} Qxa2 {[%emt 0:03:48]} 24. Rb8 {[%emt 0:00:43]} Qa1+ {[%emt 0:00:21]} 25. Kf2 {[%emt 0:00:07]} Qa2+ {[%emt 0:00:14]} 26. Kg1 {[%emt 0:00:05]} Qa1+ {[%emt 0:00:04]} 27. Kf2 {[%emt 0:00:06]} Qa2+ {[%emt 0:00:18]} 28. Kg1 {[%emt 0:00:06]} Qa1+ {[%emt 0:00:03]} 29. Kf2 {[%emt 0:00:14]} Qa2+ {[%emt 0:00:03]} 1/2-1/2

[Event "IIFL Wealth  4th Mumbai Junior U-13"]
[Site "Mumbai"]
[Date "2018.12.31"]
[Round "2"]
[White "Sushanth Kamabathula"]
[Black "Adireddy Tarun"]
[Result "1-0"]
[ECO "C54"]
[WhiteElo "1267"]
[BlackElo "1553"]
[Annotator "NA"]
[PlyCount "177"]
[EventDate "2018.12.30"]
[EventType "swiss"]
[EventCountry "IND"]
[SourceTitle "playchess.com"]
[Source "ChessBase"]
[SourceQuality "1"]
[TimeControl "40/5400+30:1800+30"]

1. e4 e5 {[%emt 0:01:24]} 2. Nf3 {[%emt 0:01:04]} Nc6 {[%emt 0:00:08]} 3. Bc4 {[%emt 0:00:19]} Bc5 {[%emt 0:00:23]} 4. c3 {[%emt 0:06:36]} Nf6 {[%emt 0:00:06]} 5. d3 {[%emt 0:00:14]} a6 {[%emt 0:00:04]} 6. O-O {[%emt 0:00:21]} Ba7 {[%emt 0:00:03]} 7. Be3 {[%emt 0:02:10]} O-O {[%emt 0:00:09]} 8. Nbd2 {[%emt 0:00:56]} d5 {[%emt 0:06:15]} 9. Bxa7 {[%emt 0:12:30]} Rxa7 {[%emt 0:05:42]} 10. Bb3 {[%emt 0:00:43]} Bg4 {[%emt 0:04:05]} 11. Qc2 {[%emt 0:07:27]} Re8 {[%emt 0:03:54]} 12. Rfe1 {[%emt 0:05:02]} Ra8 {[%emt 0:09:26]} 13. h3 {[%emt 0:28:14]} Bh5 {[%emt 0:01:58]} 14. exd5 {[%emt 0:01:46]} Nxd5 {[%emt 0:01:30]} 15. d4 {[%emt 0:01:30]} Bg6 {[%emt 0:03:12]} 16. Qd1 {[%emt 0:02:00]} Nf4 {[%emt 0:04:58]} 17. Nxe5 {[%emt 0:10:01]} Nxe5 {[%emt 0:02:27]} 18. Rxe5 {[%emt 0:00:12]} Rxe5 {[%emt 0:00:14]} 19. dxe5 {[%emt 0:00:08]} Qg5 {[%emt 0:13:22]} 20. Qg4 {[%emt 0:01:02]} Qxe5 {[%emt 0:01:55]} 21. Nc4 {[%emt 0:01:31]} Qf6 {[%emt 0:00:41]} 22. Ne3 {[%emt 0:04:01]} h5 {[%emt 0:21:31]} 23. Qf3 {[%emt 0:00:56]} c6 {[%emt 0:03:04]} 24. Rd1 {[%emt 0:05:00]} Re8 {[%emt 0:03:50]} 25. Rd4 {[%emt 0:02:19]} Nd3 {[%emt 0:03:41]} 26. Qxf6 {[%emt 0:00:54]} gxf6 {[%emt 0:00:43]} 27. Bc2 {[%emt 0:01:28]} Nc1 {[%emt 0:02:19]} 28. Rd1 {[%emt 0:04:03]} Bxc2 {[%emt 0:00:54]} 29. Rxc1 {[%emt 0:00:14]} Be4 {[%emt 0:00:36]} 30. f3 {[%emt 0:00:25]} Bxf3 {[%emt 0:00:11]} 31. gxf3 {[%emt 0:00:06]} Rxe3 {[%emt 0:00:06]} 32. Kf2 {[%emt 0:00:05]} Rd3 {[%emt 0:00:37]} 33. Rc2 {[%emt 0:00:52]} Kg7 {[%emt 0:01:13]} 34. Re2 {[%emt 0:00:16]} h4 {[%emt 0:00:58]} 35. c4 {[%emt 0:00:59]} c5 {[%emt 0:01:33]} 36. b3 {[%emt 0:01:40]} b5 {[%emt 0:01:10]} 37. cxb5 {[%emt 0:00:14]} axb5 {[%emt 0:00:01]} 38. Rc2 {[%emt 0:00:10]} Rd5 {[%emt 0:00:28]} 39. a4 {[%emt 0:00:42]} bxa4 {[%emt 0:01:40]} 40. bxa4 {[%emt 0:00:00]} Kg6 {[%emt 0:00:00]} 41. a5 {[%emt 0:00:56]} Rd3 {[%emt 0:15:52]} 42. Rxc5 {[%emt 0:00:37]} Ra3 {[%emt 0:00:01]} 43. Rb5 {[%emt 0:00:20]} f5 {[%emt 0:01:44]} 44. Rb6+ {[%emt 0:00:33]} Kg5 {[%emt 0:01:20]} 45. a6 {[%emt 0:00:13]} Ra2+ {[%emt 0:16:09]} 46. Ke3 Ra4 {[%emt 0:00:33]} 47. Rc6 {[%emt 0:03:07]} Ra3+ {[%emt 0:00:35]} 48. Kf2 {[%emt 0:00:09]} Ra2+ {[%emt 0:00:13]} 49. Ke3 {[%emt 0:00:01]} Ra4 {[%emt 0:00:33]} 50. Rb6 {[%emt 0:00:07]} Ra3+ {[%emt 0:00:05]} 51. Kf2 {[%emt 0:00:05]} Ra2+ {[%emt 0:00:06]} 52. Ke3 {[%emt 0:00:05]} f4+ {[%emt 0:00:03]} 53. Kd3 {[%emt 0:00:21]} Rf2 {[%emt 0:00:20]} 54. Rb5+ {[%emt 0:00:08]} f5 {[%emt 0:00:13]} 55. Ra5 {[%emt 0:00:03]} Rxf3+ {[%emt 0:00:11]} 56. Ke2 {[%emt 0:00:29]} Re3+ {[%emt 0:00:24]} 57. Kf2 {[%emt 0:00:04]} Re8 {[%emt 0:00:44]} 58. a7 {[%emt 0:00:44]} Ra8 {[%emt 0:00:02]} 59. Kf3 {[%emt 0:00:06]} Kf6 {[%emt 0:02:42]} 60. Kxf4 {[%emt 0:00:05]} Kg6 {[%emt 0:00:08]} 61. Ra6+ {[%emt 0:00:09]} Kg7 {[%emt 0:01:27]} 62. Kxf5 {[%emt 0:00:07]} Kf7 {[%emt 0:00:27]} 63. Kg5 {[%emt 0:00:08]} Kg7 {[%emt 0:00:11]} 64. Kxh4 {[%emt 0:00:09]} Kh7 {[%emt 0:00:14]} 65. Kg5 {[%emt 0:00:11]} Kg7 {[%emt 0:00:09]} 66. h4 {[%emt 0:00:04]} Kh7 {[%emt 0:00:11]} 67. Kf6 {[%emt 0:00:07]} Kh6 {[%emt 0:00:13]} 68. Ke7+ {[%emt 0:00:04]} Kh5 {[%emt 0:00:06]} 69. Kd7 {[%emt 0:00:05]} Kxh4 {[%emt 0:00:10]} 70. Kc7 {[%emt 0:00:03]} Kg5 {[%emt 0:00:07]} 71. Kb7 {[%emt 0:00:04]} Rh8 {[%emt 0:00:06]} 72. a8=Q Rxa8 {[%emt 0:00:08]} 73. Kxa8 {[%emt 0:00:10]} Kf5 {[%emt 0:00:05]} 74. Kb7 {[%emt 0:00:05]} Kg5 {[%emt 0:00:09]} 75. Kc7 {[%emt 0:00:07]} Kf5 {[%emt 0:00:06]} 76. Kd7 {[%emt 0:00:06]} Kg5 {[%emt 0:00:07]} 77. Ke7 {[%emt 0:00:12]} Kf5 {[%emt 0:00:08]} 78. Re6 {[%emt 0:00:05]} Kf4 {[%emt 0:00:07]} 79. Kf6 {[%emt 0:00:05]} Kg4 {[%emt 0:00:05]} 80. Re4+ {[%emt 0:00:05]} Kf3 {[%emt 0:00:08]} 81. Kf5 {[%emt 0:00:04]} Kg3 {[%emt 0:00:08]} 82. Re3+ {[%emt 0:00:04]} Kf2 {[%emt 0:00:05]} 83. Kf4 {[%emt 0:00:05]} Kg2 {[%emt 0:00:09]} 84. Re2+ {[%emt 0:00:07]} Kg1 {[%emt 0:00:06]} 85. Ke3 {[%emt 0:00:11]} Kh1 {[%emt 0:00:15]} 86. Kf3 {[%emt 0:00:05]} Kg1 {[%emt 0:00:04]} 87. Re1+ {[%emt 0:00:05]} Kh2 {[%emt 0:00:04]} 88. Ra1 {[%emt 0:00:05]} Kh3 {[%emt 0:00:04]} 89. Rh1# {[%emt 0:00:06]} 1-0

[Event "IIFL Wealth  4th Mumbai Junior U-13"]
[Site "Mumbai"]
[Date "2018.12.31"]
[Round "2"]
[White "Rout Yashita"]
[Black "Mahi Amit Doshi"]
[Result "1-0"]
[ECO "B18"]
[WhiteElo "1264"]
[BlackElo "1551"]
[Annotator "NA"]
[PlyCount "125"]
[EventDate "2018.12.30"]
[EventType "swiss"]
[EventCountry "IND"]
[SourceTitle "playchess.com"]
[Source "ChessBase"]
[SourceQuality "1"]
[TimeControl "40/5400+30:1800+30"]

1. e4 {[%emt 0:00:13]} c6 {[%emt 0:00:00]} 2. d4 {[%emt 0:00:42]} d5 {[%emt 0:00:00]} 3. Nc3 {[%emt 0:00:29]} dxe4 {[%emt 0:00:00]} 4. Nxe4 {[%emt 0:00:17]} Bf5 {[%emt 0:00:00]} 5. Ng3 {[%emt 0:00:14]} Bg6 {[%emt 0:00:00]} 6. h4 {[%emt 0:00:13]} h6 {[%emt 0:00:00]} 7. Nf3 {[%emt 0:00:25]} Nf6 {[%emt 0:00:00]} 8. h5 {[%emt 0:02:45]} Bh7 {[%emt 0:00:00]} 9. Bd3 {[%emt 0:00:39]} Bxd3 {[%emt 0:00:02]} 10. Qxd3 {[%emt 0:00:11]} e6 {[%emt 0:00:07]} 11. Bd2 {[%emt 0:01:36]} c5 {[%emt 0:02:38]} 12. c3 {[%emt 0:09:50]} Nc6 {[%emt 0:04:52]} 13. Be3 {[%emt 0:06:36]} cxd4 {[%emt 0:01:03]} 14. cxd4 {[%emt 0:08:01]} Bb4+ {[%emt 0:01:27]} 15. Bd2 {[%emt 0:02:35]} Bxd2+ {[%emt 0:02:14]} 16. Qxd2 {[%emt 0:00:18]} O-O {[%emt 0:00:18]} 17. O-O-O {[%emt 0:02:10]} Rc8 {[%emt 0:01:37]} 18. Kb1 {[%emt 0:01:06]} Qb6 {[%emt 0:02:25]} 19. Ka1 {[%emt 0:07:59]} Rfd8 {[%emt 0:01:07]} 20. Qf4 {[%emt 0:04:47]} Nb4 {[%emt 0:02:36]} 21. Rd2 {[%emt 0:03:01]} Qc6 {[%emt 0:03:07]} 22. Ne2 {[%emt 0:10:34]} Nfd5 {[%emt 0:18:56]} 23. Qe4 {[%emt 0:01:27]} f5 {[%emt 0:02:02]} 24. Qe5 {[%emt 0:11:40]} Qa6 {[%emt 0:02:42]} 25. a3 {[%emt 0:00:49]} Nd3 {[%emt 0:03:33]} 26. Rxd3 {[%emt 0:04:46]} Qxd3 {[%emt 0:00:50]} 27. Qxe6+ {[%emt 0:00:06]} Kh8 {[%emt 0:02:31]} 28. Ne5 {[%emt 0:01:24]} Qa6 {[%emt 0:14:45]} 29. Nf7+ {[%emt 0:00:16]} Kh7 {[%emt 0:01:10]} 30. Qxf5+ {[%emt 0:01:47]} Kg8 {[%emt 0:00:10]} 31. Nxd8 {[%emt 0:00:30]} Rxd8 {[%emt 0:00:03]} 32. Nf4 {[%emt 0:01:16]} Nxf4 {[%emt 0:04:09]} 33. Qxf4 {[%emt 0:00:16]} Qd3 {[%emt 0:06:26]} 34. Re1 {[%emt 0:03:47]} Rxd4 {[%emt 0:07:17]} 35. Qb8+ {[%emt 0:00:26]} Rd8 {[%emt 0:09:50]} 36. Qxb7 {[%emt 0:00:21]} Qd2 {[%emt 0:01:11]} 37. Qb3+ {[%emt 0:01:23]} Kh7 {[%emt 0:01:25]} 38. Qe3 {[%emt 0:00:21]} Qxe3 {[%emt 0:00:57]} 39. Rxe3 {[%emt 0:00:13]} Kg8 {[%emt 0:00:05]} 40. g4 {[%emt 0:00:00]} Kf7 {[%emt 0:00:00]} 41. Ka2 {[%emt 0:01:19]} Rd2 {[%emt 0:00:16]} 42. f3 {[%emt 0:00:30]} Rd4 {[%emt 0:00:20]} 43. Kb3 {[%emt 0:00:14]} Kf6 {[%emt 0:00:16]} 44. Kc3 {[%emt 0:00:12]} Rf4 {[%emt 0:00:11]} 45. Kd3 {[%emt 0:00:37]} Ra4 {[%emt 0:00:35]} 46. Re4 {[%emt 0:00:13]} Ra5 {[%emt 0:00:18]} 47. f4 {[%emt 0:00:43]} Rb5 {[%emt 0:00:09]} 48. b4 {[%emt 0:01:52]} Rb6 {[%emt 0:00:13]} 49. a4 {[%emt 0:00:33]} Rc6 {[%emt 0:00:11]} 50. Rc4 {[%emt 0:00:50]} Rd6+ {[%emt 0:00:08]} 51. Rd4 {[%emt 0:00:17]} Rc6 {[%emt 0:00:12]} 52. b5 {[%emt 0:01:06]} Rc1 {[%emt 0:00:10]} 53. Rd6+ {[%emt 0:00:26]} Ke7 {[%emt 0:00:08]} 54. Ra6 {[%emt 0:00:18]} Rd1+ {[%emt 0:00:10]} 55. Ke4 {[%emt 0:00:22]} Rd7 {[%emt 0:00:17]} 56. Kf5 {[%emt 0:01:59]} Kf7 {[%emt 0:00:17]} 57. g5 {[%emt 0:00:22]} hxg5 {[%emt 0:00:19]} 58. Kxg5 {[%emt 0:00:50]} Rd5+ {[%emt 0:00:06]} 59. f5 {[%emt 0:00:11]} Rd7 {[%emt 0:00:53]} 60. a5 {[%emt 0:01:06]} Rb7 {[%emt 0:00:16]} 61. b6 {[%emt 0:00:27]} axb6 {[%emt 0:00:22]} 62. axb6 {[%emt 0:00:07]} Ke7 {[%emt 0:00:12]} 63. Ra7 {[%emt 0:00:11]} 1-0

[Event "IIFL Wealth  4th Mumbai Junior U-13"]
[Site "Mumbai"]
[Date "2018.12.31"]
[Round "2"]
[White "Haldankar Dhruv"]
[Black "Jain Adi"]
[Result "0-1"]
[ECO "C55"]
[WhiteElo "1245"]
[BlackElo "1545"]
[Annotator "NA"]
[PlyCount "138"]
[EventDate "2018.12.30"]
[EventType "swiss"]
[EventCountry "IND"]
[SourceTitle "playchess.com"]
[Source "ChessBase"]
[SourceQuality "1"]
[TimeControl "40/5400+30:1800+30"]

1. e4 {[%emt 0:00:00]} e5 {[%emt 0:00:00]} 2. Nf3 {[%emt 0:00:00]} Nc6 {[%emt 0:00:00]} 3. Bc4 {[%emt 0:00:06]} Nf6 {[%emt 0:00:00]} 4. d3 {[%emt 0:00:08]} Be7 {[%emt 0:00:01]} 5. h3 {[%emt 0:00:40]} O-O {[%emt 0:00:40]} 6. O-O {[%emt 0:00:35]} d6 {[%emt 0:01:43]} 7. c3 {[%emt 0:03:23]} Na5 {[%emt 0:04:30]} 8. Bb5 {[%emt 0:04:45]} c6 {[%emt 0:01:05]} 9. Ba4 {[%emt 0:00:40]} b5 {[%emt 0:00:14]} 10. Bc2 {[%emt 0:00:11]} Re8 {[%emt 0:00:30]} 11. Re1 {[%emt 0:02:58]} h6 {[%emt 0:02:02]} 12. Nbd2 {[%emt 0:06:31]} Bf8 {[%emt 0:01:42]} 13. Nf1 {[%emt 0:03:00]} g6 {[%emt 0:10:15]} 14. d4 {[%emt 0:05:27]} Bb7 {[%emt 0:08:11]} 15. Ng3 {[%emt 0:06:15]} Bg7 {[%emt 0:03:15]} 16. b3 {[%emt 0:05:45]} exd4 {[%emt 0:05:08]} 17. cxd4 {[%emt 0:01:08]} c5 {[%emt 0:01:24]} 18. Bb2 {[%emt 0:01:07]} Nc6 {[%emt 0:01:55]} 19. d5 {[%emt 0:04:14]} Nb4 {[%emt 0:01:39]} 20. a3 {[%emt 0:04:58]} Nxc2 {[%emt 0:00:17]} 21. Qxc2 {[%emt 0:00:02]} Rc8 {[%emt 0:01:27]} 22. Rac1 {[%emt 0:06:17]} Nd7 {[%emt 0:04:45]} 23. Bxg7 {[%emt 0:03:40]} Kxg7 {[%emt 0:00:03]} 24. Qb2+ {[%emt 0:00:01]} Qf6 {[%emt 0:03:41]} 25. Qxf6+ {[%emt 0:00:12]} Nxf6 {[%emt 0:00:04]} 26. Nd2 {[%emt 0:04:31]} h5 {[%emt 0:05:33]} 27. f3 {[%emt 0:02:09]} Nd7 {[%emt 0:02:41]} 28. f4 {[%emt 0:00:41]} Nf6 {[%emt 0:03:46]} 29. Nf3 {[%emt 0:03:41]} Re7 {[%emt 0:10:43]} 30. Re2 {[%emt 0:01:09]} Rce8 {[%emt 0:06:30]} 31. Rce1 {[%emt 0:00:14]} a5 {[%emt 0:04:42]} 32. Kf2 {[%emt 0:01:20]} b4 {[%emt 0:01:08]} 33. axb4 {[%emt 0:01:15]} axb4 {[%emt 0:00:27]} 34. Re3 {[%emt 0:02:30]} Ba6 {[%emt 0:07:01]} 35. f5 {[%emt 0:08:51]} g5 {[%emt 0:05:02]} 36. e5 {[%emt 0:03:40]} dxe5 {[%emt 0:01:24]} 37. Rxe5 {[%emt 0:01:00]} Rxe5 {[%emt 0:00:31]} 38. Rxe5 {[%emt 0:00:32]} Rxe5 {[%emt 0:00:09]} 39. Nxe5 {[%emt 0:00:17]} h4 {[%emt 0:00:07]} 40. Nf1 {[%emt 0:00:00]} Nxd5 {[%emt 0:00:00]} 41. Nd2 {[%emt 0:01:36]} Nb6 {[%emt 0:01:24]} 42. Ne4 {[%emt 0:03:40]} c4 {[%emt 0:04:48]} 43. f6+ {[%emt 0:00:01]} Kg8 {[%emt 0:02:38]} 44. Nc5 {[%emt 0:00:09]} cxb3 {[%emt 0:00:41]} 45. Nxb3 {[%emt 0:00:07]} Bc4 {[%emt 0:02:17]} 46. Nxc4 {[%emt 0:00:22]} Nxc4 {[%emt 0:00:01]} 47. Kf3 {[%emt 0:00:01]} Kh7 {[%emt 0:00:12]} 48. Ke4 {[%emt 0:00:17]} Kg6 {[%emt 0:00:17]} 49. Kd4 {[%emt 0:00:23]} Nd6 {[%emt 0:00:27]} 50. Kc5 {[%emt 0:00:16]} Nf5 {[%emt 0:00:11]} 51. Kxb4 {[%emt 0:00:23]} Ne3 {[%emt 0:00:17]} 52. Kc3 {[%emt 0:01:25]} Nxg2 {[%emt 0:00:03]} 53. Kd2 {[%emt 0:00:07]} g4 {[%emt 0:00:36]} 54. Ke2 {[%emt 0:00:12]} Nf4+ {[%emt 0:00:11]} 55. Kf2 {[%emt 0:00:09]} g3+ {[%emt 0:00:14]} 56. Kf3 {[%emt 0:00:11]} Nxh3 {[%emt 0:00:08]} 57. Nd2 {[%emt 0:00:06]} Ng5+ {[%emt 0:00:06]} 58. Kg2 {[%emt 0:00:07]} Kxf6 {[%emt 0:00:13]} 59. Nf1 {[%emt 0:00:57]} Kf5 {[%emt 0:00:23]} 60. Ne3+ {[%emt 0:00:12]} Ke4 {[%emt 0:00:17]} 61. Ng4 {[%emt 0:00:12]} Kf4 {[%emt 0:00:37]} 62. Nf6 {[%emt 0:00:10]} h3+ {[%emt 0:00:07]} 63. Kg1 {[%emt 0:00:05]} Kf3 {[%emt 0:00:06]} 64. Ng4 {[%emt 0:00:10]} Kxg4 {[%emt 0:00:10]} 65. Kh1 {[%emt 0:00:05]} Kf3 {[%emt 0:00:07]} 66. Kg1 {[%emt 0:00:04]} Ne4 {[%emt 0:00:07]} 67. Kh1 {[%emt 0:00:04]} Nf2+ {[%emt 0:00:04]} 68. Kg1 {[%emt 0:00:01]} h2+ {[%emt 0:00:09]} 69. Kf1 {[%emt 0:00:04]} h1=Q# {[%emt 0:00:07]} 0-1